fUST/lending_fUST_20260619
["ID","MTS","AMOUNT","RATE_DAILY","PERIOD"]
[425636331,1781841043000,-174.46381986,0.00018628,2]
[425636328,1781841043000,-500.0,0.00018376,2]
[425636332,1781841043000,-232.05,0.00018628,2]
[425636336,1781841043000,-224.96,0.00018629,2]
[425636337,1781841043000,-499.64903231,0.0001863,2]
[425636330,1781841043000,-500.0,0.00018628,2]
[425636335,1781841043000,-572.27,0.00018628,2]
[425636349,1781841043000,-417.15472785,0.00018899,3]
[425636346,1781841043000,-500.0,0.00018888,2]
[425636350,1781841043000,-500.0,0.00018899,3]
[425636343,1781841043000,-2248.08495979,0.00018725,2]
[425636345,1781841043000,-4171.77990832,0.00018784,2]
[425636342,1781841043000,-500.0,0.0001863,2]
[425636338,1781841043000,-500.0,0.0001863,2]
[425636348,1781841043000,-159.16,0.00018889,3]
[425636340,1781841043000,-500.0,0.0001863,2]
[425636376,1781841043000,-377.44005561,0.00018899,3]
[425636339,1781841043000,-500.0,0.0001863,2]
[425636347,1781841043000,-1035.30413491,0.00018889,2]
[425636344,1781841043000,-600.0,0.00018744,2]
[425636403,1781841044000,-242.904117,0.00018917,2]
[425636402,1781841044000,-160.0,0.00018917,2]
[425636404,1781841044000,-325.808235,0.00018917,2]
[425636405,1781841044000,-524.094705,0.00018992,2]
[425636407,1781841044000,-324.476,0.00018999,2]
[425636408,1781841044000,-447.224,0.00018999,2]
[425636412,1781841044000,-4906.711289,0.00018999,2]
[425636406,1781841044000,-1418.0,0.00018999,2]
[425636416,1781841044000,-1081.631774,0.00018999,2]
[425636413,1781841044000,-4906.711289,0.00018999,2]
[425636411,1781841044000,-4906.711289,0.00018999,2]
[425636414,1781841044000,-4906.711289,0.00018999,2]
[425636410,1781841044000,-150.334,0.00018999,2]
[425636415,1781841044000,-156.490508,0.00018999,2]
[425636425,1781841044000,-591.25674263,0.00019043,7]
[425636427,1781841044000,-150.54758988,0.00019066,2]
[425636409,1781841044000,-150.432,0.00018999,2]
[425636399,1781841044000,-500.0,0.00018904,2]
[425636393,1781841044000,-2642.57,0.00018902,2]
[425636398,1781841044000,-500.0,0.00018904,2]
[425636417,1781841044000,-1081.631774,0.00018999,2]
[425636382,1781841044000,-248.81553022,0.00018899,3]
[425636383,1781841044000,-500.0,0.00018899,3]
[425636385,1781841044000,-500.0,0.00018899,3]
[425636384,1781841044000,-500.0,0.00018899,3]
[425636386,1781841044000,-500.0,0.00018899,3]
[425636388,1781841044000,-500.0,0.00018899,3]
[425636391,1781841044000,-326.83640523,0.00018899,3]
[425636394,1781841044000,-462.50933811,0.00018902,2]
[425636389,1781841044000,-500.0,0.00018899,3]
[425636390,1781841044000,-500.0,0.00018899,3]
[425636387,1781841044000,-500.0,0.00018899,3]
[425636392,1781841044000,-569.42,0.00018902,2]
[425636396,1781841044000,-572.27,0.00018902,2]
[425636395,1781841044000,-37.49066189,0.00018902,2]
[425636397,1781841044000,-167.48831589,0.00018904,2]
[425636401,1781841044000,-500.0,0.00018904,2]
[425636400,1781841044000,-532.26,0.00018904,2]
[425636426,1781841044000,-181.12,0.00019066,2]
[425636451,1781841044000,-194.323295,0.00019502,2]
[425636419,1781841044000,-1081.631774,0.00018999,2]
[425636440,1781841044000,-151.0,0.000194,2]
[425636443,1781841044000,-2642.57,0.0001945,2]
[425636445,1781841044000,-572.27,0.0001945,2]
[425636418,1781841044000,-1081.631774,0.00018999,2]
[425636446,1781841044000,-213.75026416,0.00019452,2]
[425636447,1781841044000,-500.0,0.00019452,2]
[425636449,1781841044000,-500.0,0.00019452,2]
[425636448,1781841044000,-532.26,0.00019452,2]
[425636450,1781841044000,-500.0,0.0001949,2]
[425636454,1781841044000,-160.0,0.00019596,2]
[425636457,1781841044000,-196.49955408,0.000196,2]
[425636461,1781841044000,-1295.44648448,0.00019726,2]
[425636459,1781841044000,-500.0,0.00019724,2]
[425636455,1781841044000,-278.20852035,0.000196,2]
[425636456,1781841044000,-1320.28074157,0.000196,2]
[425636458,1781841044000,-2642.57,0.00019724,2]
[425636460,1781841044000,-572.27,0.00019724,2]
[425636452,1781841044000,-160.0,0.00019596,2]
[425636453,1781841044000,-160.0,0.00019596,2]
[425636444,1781841044000,-500.0,0.0001945,2]
[425636441,1781841044000,-151.0,0.000194,2]
[425636421,1781841044000,-151.0,0.00018999,2]
[425636420,1781841044000,-151.0,0.00018999,2]
[425636442,1781841044000,-498.53545052,0.00019418,2]
[425636424,1781841044000,-2742.0765907,0.00019043,7]
[425636422,1781841044000,-211.3364854,0.00019043,7]
[425636428,1781841044000,-2642.57,0.00019176,2]
[425636431,1781841044000,-300.0,0.00019178,2]
[425636430,1781841044000,-572.27,0.00019176,2]
[425636423,1781841044000,-3333.33333333,0.00019043,2]
[425636429,1781841044000,-500.0,0.00019176,2]
[425636437,1781841044000,-819.75752533,0.00019281,2]
[425636435,1781841044000,-500.0,0.00019178,2]
[425636438,1781841044000,-151.0,0.000193,2]
[425636432,1781841044000,-500.0,0.00019178,2]
[425636439,1781841044000,-185.192747,0.00019331,2]
[425636434,1781841044000,-532.26,0.00019178,2]
[425636436,1781841044000,-151.0,0.000192,2]
[425636433,1781841044000,-500.0,0.00019178,2]
[425636537,1781841046000,-509.50216706,0.00016712,2]
[425636535,1781841046000,-500.0,0.00016438,2]
[425636531,1781841046000,-500.0,0.00016438,2]
[425636533,1781841046000,-1541.49,0.00016438,2]
[425636561,1781841046000,-154.36217638,0.00016712,2]
[425636563,1781841046000,-337.56270664,0.00016712,2]
[425636539,1781841046000,-345.63782362,0.00016712,2]
[425638142,1781841082000,152.0,0.0001898,30]
[425638155,1781841451000,167.78091052,0.00017,120]
[425638157,1781841509000,1070.0,8.602e-05,2]
[425638165,1781842226000,729.74069593,0.00023259,30]
[425638180,1781842233000,-532.5699982,0.0001,2]
[425638181,1781842233000,-301.85923734,0.000115,2]
[425638183,1781842233000,-411.9,0.000118,5]
[425638182,1781842233000,-828.8849602,0.000118,5]
[425638195,1781842239000,-1095.11823833,0.000118,5]
[425638196,1781842239000,-18.64589762,0.00012,2]
[425638465,1781842246000,-1611.46455865,0.00012,2]
[425638548,1781843438000,-1483.36792864,0.0001303,2]
[425638546,1781843438000,-151.0,0.0001164,2]
[425638547,1781843438000,-1027.28827452,0.00012,2]
[425638632,1781843443000,-500.0,0.00016437,2]
[425638631,1781843443000,-389.98865,0.00016412,2]
[425638635,1781843443000,-500.0,0.00016437,2]
[425638630,1781843443000,-219.41326223,0.00016,2]
[425638628,1781843443000,-179.405217,0.00015093,2]
[425638629,1781843443000,-1279.59026219,0.00015475,2]
[425638634,1781843443000,-280.63754669,0.00016437,2]
[425638627,1781843443000,-12.55593298,0.0001303,2]
[425638636,1781843443000,-500.0,0.00016437,2]
[425638633,1781843443000,-500.0,0.00016437,2]
[425638637,1781843443000,-159.04377052,0.00016437,2]
[425638644,1781843443000,-500.0,0.00016438,2]
[425638642,1781843443000,-512.92934972,0.00016438,2]
[425638639,1781843443000,-509.37362533,0.00016438,2]
[425638638,1781843443000,-500.0,0.00016438,2]
[425638640,1781843443000,-500.0,0.00016438,2]
[425638643,1781843443000,-511.55061952,0.00016438,2]
[425638645,1781843443000,-500.0,0.00016438,2]
[425638646,1781843443000,-234.61228694,0.00016438,2]
[425638641,1781843443000,-500.0,0.00016438,2]
[425638687,1781843446000,-82.61228694,0.00016438,2]
[425638686,1781843446000,-265.38771306,0.00016438,2]
[425638689,1781843482000,179.405217,0.00015774,2]
[425638691,1781843508000,-417.38771306,0.00016438,2]
[425638692,1781843510000,180.93,0.00024608,120]
[425638805,1781844355000,499797.0,0.00023262,30]
[425638806,1781844360000,200.0,0.00023262,30]
[425638883,1781844632000,-500.0,0.00016437,2]
[425638882,1781844632000,-300.0,0.00016436,2]
[425638876,1781844632000,-195.88699583,0.00011873,7]
[425638884,1781844632000,-226.87772493,0.00016437,2]
[425638875,1781844632000,-3666.62310812,0.00011405,9]
[425638880,1781844632000,-778.1826798,0.00015565,2]
[425638877,1781844632000,-251.95618108,0.00012966,2]
[425638879,1781844632000,-349.3668943,0.00015383,2]
[425638881,1781844632000,-224.6214647,0.00016338,2]
[425638878,1781844632000,-188.8130784,0.00015251,2]
[425638886,1781844632000,-76.24461924,0.00016437,2]
[425638885,1781844632000,-273.12227507,0.00016437,2]
[425638911,1781844640000,-402.76926163,0.00016338,2]
[425638912,1781844641000,-326.66937278,0.00016338,2]
[425638913,1781844641000,-52245.2369482,0.00016338,2]
[425638914,1781844641000,-10600.41701886,0.00016338,2]
[425638929,1781844643000,-1540.57371227,0.00016338,2]
[425638928,1781844643000,-351.41676919,0.00016338,2]
[425638943,1781844646000,-3561.02973803,0.00016338,2]
[425639017,1781845350000,508.82514385,0.0002329,30]
[425639188,1781845832000,-783.50398771,0.000118,5]
[425639186,1781845832000,-156.247,0.000117,2]
[425639187,1781845832000,-300.0,0.00011799,2]
[425639190,1781845832000,-3004.860349,0.000118,5]
[425639195,1781845832000,-323.21066525,0.00012955,2]
[425639192,1781845832000,-152.0,0.00011872,7]
[425639191,1781845832000,-152.0,0.00011872,7]
[425639189,1781845832000,-6686.69355116,0.000118,5]
[425639194,1781845832000,-159.03686402,0.000127,2]
[425639193,1781845832000,-1611.46455865,0.00012,2]
[425639248,1781845838000,-5018.76123541,0.00015937,2]
[425639252,1781845838000,-3261.251026,0.00016037,2]
[425639250,1781845838000,-281.39582237,0.00016037,2]
[425639251,1781845838000,-150.86465714,0.00016037,2]
[425639247,1781845838000,-727.308707,0.00015757,2]
[425639253,1781845838000,-3261.251026,0.00016037,2]
[425639249,1781845838000,-200.96086663,0.0001595,5]
[425639254,1781845838000,-3261.251026,0.00016037,2]
[425639243,1781845838000,-727.308707,0.00014533,2]
[425639244,1781845838000,-757.8974748,0.00014987,2]
[425639241,1781845838000,-96.78933475,0.00012955,2]
[425639242,1781845838000,-1000.0,0.00013737,2]
[425639245,1781845838000,-382.9488773,0.00015011,2]
[425639246,1781845838000,-727.308707,0.00015145,2]
[425639257,1781845838000,-432.65271,0.00016037,2]
[425639256,1781845838000,-432.65271,0.00016037,2]
[425639259,1781845838000,-432.65271,0.00016037,2]
[425639255,1781845838000,-3261.251026,0.00016037,2]
[425639270,1781845838000,-432.65271,0.00016037,2]
[425639269,1781845838000,-432.65271,0.00016037,2]
[425639260,1781845838000,-432.65271,0.00016037,2]
[425639267,1781845838000,-432.65271,0.00016037,2]
[425639264,1781845838000,-432.65271,0.00016037,2]
[425639271,1781845838000,-432.65271,0.00016037,2]
[425639261,1781845838000,-432.65271,0.00016037,2]
[425639265,1781845838000,-432.65271,0.00016037,2]
[425639263,1781845838000,-432.65271,0.00016037,2]
[425639262,1781845838000,-432.65271,0.00016037,2]
[425639268,1781845838000,-432.65271,0.00016037,2]
[425639266,1781845838000,-432.65271,0.00016037,2]
[425639258,1781845838000,-432.65271,0.00016037,2]
[425639282,1781845839000,-353.620994,0.00016037,2]
[425639283,1781845839000,-353.620994,0.00016037,2]
[425639281,1781845839000,-353.620994,0.00016037,2]
[425639280,1781845839000,-353.620994,0.00016037,2]
[425639278,1781845839000,-353.620994,0.00016037,2]
[425639276,1781845839000,-353.620994,0.00016037,2]
[425639279,1781845839000,-353.620994,0.00016037,2]
[425639277,1781845839000,-353.620994,0.00016037,2]
[425639273,1781845839000,-432.65271,0.00016037,2]
[425639272,1781845839000,-432.65271,0.00016037,2]
[425639284,1781845839000,-353.620994,0.00016037,2]
[425639275,1781845839000,-432.652712,0.00016037,2]
[425639285,1781845839000,-353.620994,0.00016037,2]
[425639274,1781845839000,-432.65271,0.00016037,2]
[425639294,1781845839000,-353.620994,0.00016037,2]
[425639300,1781845839000,-713961.93196088,0.00016038,2]
[425639299,1781845839000,-3261.251026,0.00016038,2]
[425639297,1781845839000,-3261.251026,0.00016038,2]
[425639298,1781845839000,-3261.251026,0.00016038,2]
[425639296,1781845839000,-3261.251026,0.00016038,2]
[425639289,1781845839000,-353.620994,0.00016037,2]
[425639295,1781845839000,-353.620984,0.00016037,2]
[425639292,1781845839000,-353.620994,0.00016037,2]
[425639291,1781845839000,-353.620994,0.00016037,2]
[425639287,1781845839000,-353.620994,0.00016037,2]
[425639288,1781845839000,-353.620994,0.00016037,2]
[425639286,1781845839000,-353.620994,0.00016037,2]
[425639293,1781845839000,-353.620994,0.00016037,2]
[425639290,1781845839000,-353.620994,0.00016037,2]
[425639328,1781845846000,-3960.65400525,0.00016038,2]
[425639558,1781846561000,15016.75834726,0.0002329,120]
[425639561,1781846821000,-1000.0,0.00011467,9]
[425639628,1781847032000,-152.0,0.00011875,7]
[425639626,1781847032000,-162.10298642,0.000117,7]
[425639627,1781847032000,-156.28803311,0.000117,7]
[425639631,1781847032000,-575.26405719,0.00013278,2]
[425639630,1781847032000,-230.76588316,0.00012285,7]
[425639632,1781847032000,-1311.79513255,0.00013412,2]
[425639629,1781847032000,-92.29375673,0.00012285,7]
[425639643,1781847038000,-263.72,0.00015628,2]
[425639639,1781847038000,-519.60356015,0.00013548,2]
[425639642,1781847038000,-476.8914962,0.00014121,2]
[425639641,1781847038000,-1441.89987942,0.00013548,2]
[425639638,1781847038000,-288.66864453,0.00013548,2]
[425639636,1781847038000,-1245.89944626,0.00013412,2]
[425639640,1781847038000,-923.73966249,0.00013548,2]
[425639637,1781847038000,-259.40288458,0.00013548,2]
[425639650,1781847039000,-500.0,0.00015837,2]
[425639652,1781847039000,-581.27735291,0.00015837,2]
[425639653,1781847039000,-500.0,0.00015837,2]
[425639649,1781847039000,-500.0,0.00015837,2]
[425639644,1781847039000,-436.203306,0.00015706,2]
[425639651,1781847039000,-500.0,0.00015837,2]
[425639646,1781847039000,-4859.49273396,0.00015738,2]
[425639648,1781847039000,-646.70958366,0.00015837,2]
[425639645,1781847039000,-40.66417599,0.00015738,2]
[425639647,1781847039000,-500.0,0.00015837,2]
[425639654,1781847039000,-500.0,0.00015837,2]
[425639667,1781847039000,-500.0,0.00015838,2]
[425639657,1781847039000,-500.0,0.00015837,2]
[425639664,1781847039000,-474.16818979,0.00015837,2]
[425639666,1781847039000,-234741.33793547,0.00015838,2]
[425639662,1781847039000,-500.0,0.00015837,2]
[425639659,1781847039000,-500.0,0.00015837,2]
[425639661,1781847039000,-500.0,0.00015837,2]
[425639655,1781847039000,-500.0,0.00015837,2]
[425639658,1781847039000,-500.0,0.00015837,2]
[425639665,1781847039000,-974165.53958924,0.00015838,2]
[425639663,1781847039000,-500.0,0.00015837,2]
[425639656,1781847039000,-500.0,0.00015837,2]
[425639660,1781847039000,-500.0,0.00015837,2]
[425639674,1781847041000,-378.30134153,0.00015838,2]
[425639673,1781847041000,-1450.33942755,0.00015838,2]
[425639672,1781847041000,-555.10167904,0.00015838,2]
[425639740,1781847054000,-842.0,0.00015838,2]
[425639739,1781847054000,-1352.32897106,0.00015838,2]
[425639738,1781847054000,-152.0,0.00011871,7]
[425639741,1781847054000,-1286.29485963,0.00015838,2]
[425639737,1781847054000,-152.0,0.00011871,7]
[425639758,1781847090000,-1380.7556791,0.00015127,2]
[425639762,1781847106000,-170.871439,0.00013475,2]
[425639890,1781848239000,-152.0,0.00011875,7]
[425639889,1781848239000,-151.0,0.00011519,2]
[425639891,1781848239000,-153.61510959,0.00013057,2]
[425639892,1781848239000,-221.13245884,0.00013057,2]
[425639893,1781848239000,-153.61510959,0.0001346,2]
[425639894,1781848239000,-300.0,0.00014139,2]
[425639895,1781848239000,-11293.7585108,0.0001414,2]
[425639897,1781848239000,-963.09494623,0.00014474,2]
[425639896,1781848239000,-535.0527479,0.00014474,2]
[425639905,1781848239000,-194.4,0.00015202,2]
[425639906,1781848239000,-348.82806757,0.00015236,2]
[425639888,1781848239000,-5000.0,0.00011404,2]
[425639904,1781848239000,-434.637653,0.00015157,2]
[425639903,1781848239000,-167.96,0.0001471,2]
[425639902,1781848239000,-2124.527379,0.00014487,2]
[425639915,1781848239000,-805431.67625466,0.00015538,2]
[425639913,1781848239000,-500.0,0.00015537,2]
[425639914,1781848239000,-291.07602814,0.00015537,2]
[425639912,1781848239000,-210.6139152,0.00015528,2]
[425639901,1781848239000,-5238.27341252,0.00014474,2]
[425639909,1781848239000,-1744.14033786,0.00015236,2]
[425639908,1781848239000,-1116.24981623,0.00015236,2]
[425639907,1781848239000,-627.89052163,0.00015236,2]
[425639900,1781848239000,-3852.3797849,0.00014474,2]
[425639898,1781848239000,-1712.16879329,0.00014474,2]
[425639899,1781848239000,-2675.26373952,0.00014474,2]
[425639910,1781848239000,-2509.05052443,0.00015236,2]
[425639911,1781848239000,-3971.0,0.000155,2]
[425639916,1781848241000,-2200.68391285,0.00015538,2]
[425639924,1781848243000,-7899.83401473,0.00015538,2]
[425639926,1781848243000,-21941.73,0.00015538,2]
[425639925,1781848243000,-1420.0,0.00015538,2]
[425639927,1781848244000,-6790.46515608,0.00015538,2]
[425639941,1781848246000,-280.2939363,0.00015538,2]
[425639942,1781848247000,-60016.26393147,0.00015538,2]
[425639945,1781848296000,524.83518848,0.00024658,120]
[425640063,1781848835000,-363.5,0.0001,2]
[425640150,1781849431000,-336.41812067,9.507e-05,2]
[425640435,1781849438000,-500.0,0.00015434,2]
[425640442,1781849438000,-589.05662742,0.00015434,2]
[425640438,1781849438000,-500.0,0.00015434,2]
[425640440,1781849438000,-500.0,0.00015434,2]
[425640446,1781849438000,-500.0,0.00015434,2]
[425640447,1781849438000,-500.0,0.00015434,2]
[425640444,1781849438000,-586.264576,0.00015434,2]
[425640454,1781849438000,-500.0,0.00015434,2]
[425640453,1781849438000,-500.0,0.00015434,2]
[425640449,1781849438000,-151.5,0.00015434,2]
[425640458,1781849438000,-500.0,0.00015434,2]
[425640456,1781849438000,-500.0,0.00015434,2]
[425640460,1781849438000,-645.82126742,0.00015434,2]
[425640462,1781849438000,-480.92861294,0.00015434,2]
[425640465,1781849438000,-500.0,0.00015434,2]
[425640463,1781849438000,-500.0,0.00015434,2]
[425640477,1781849438000,-151.5,0.00015434,2]
[425640479,1781849438000,-500.0,0.00015434,2]
[425640469,1781849438000,-500.0,0.00015434,2]
[425640481,1781849438000,-151.52367211,0.00015434,2]
[425640471,1781849438000,-500.0,0.00015434,2]
[425640451,1781849438000,-500.0,0.00015434,2]
[425640436,1781849438000,-500.0,0.00015434,2]
[425640425,1781849438000,-500.0,0.00015434,2]
[425640427,1781849438000,-500.0,0.00015434,2]
[425640475,1781849438000,-500.0,0.00015434,2]
[425640391,1781849438000,-752.7684481,9.603e-05,2]
[425640389,1781849438000,-3156.3344958,9.507e-05,2]
[425640393,1781849438000,-151.0,9.7e-05,2]
[425640395,1781849438000,-238.05347722,0.0001,2]
[425640397,1781849438000,-152.0,0.00011874,7]
[425640399,1781849438000,-957.10184946,0.00012138,2]
[425640400,1781849438000,-173.46996129,0.00013816,2]
[425640402,1781849438000,-286.362098,0.00013835,2]
[425640404,1781849438000,-1255.1269476,0.00014178,2]
[425640406,1781849438000,-500.0,0.00014486,2]
[425640408,1781849438000,-166.77,0.00014533,2]
[425640414,1781849438000,-500.0,0.00015235,2]
[425640412,1781849438000,-271.72,0.00014848,2]
[425640410,1781849438000,-324.93862158,0.00014738,2]
[425640417,1781849438000,-167.8242302,0.00015235,2]
[425640419,1781849438000,-500.0,0.00015434,2]
[425640431,1781849438000,-500.0,0.00015434,2]
[425640429,1781849438000,-500.0,0.00015434,2]
[425640421,1781849438000,-500.0,0.00015434,2]
[425640423,1781849438000,-500.0,0.00015434,2]
[425640433,1781849438000,-500.0,0.00015434,2]
[425640467,1781849438000,-500.0,0.00015434,2]
[425640473,1781849438000,-151.5,0.00015434,2]
[425640482,1781849438000,-500.0,0.00015434,2]
[425640524,1781849438000,-500.0,0.00015537,2]
[425640533,1781849438000,-500.0,0.00015613,2]
[425640535,1781849438000,-500.0,0.00015613,2]
[425640537,1781849438000,-500.0,0.00015613,2]
[425640539,1781849438000,-500.0,0.00015613,2]
[425640540,1781849438000,-500.0,0.00015613,2]
[425640542,1781849438000,-500.0,0.00015613,2]
[425640550,1781849438000,-500.0,0.00015613,2]
[425640552,1781849438000,-553.40559502,0.00015613,2]
[425640548,1781849438000,-500.0,0.00015613,2]
[425640544,1781849438000,-500.0,0.00015613,2]
[425640553,1781849438000,-500.0,0.00015613,2]
[425640555,1781849438000,-500.0,0.00015613,2]
[425640557,1781849438000,-611.48220946,0.00015613,2]
[425640559,1781849438000,-500.0,0.00015613,2]
[425640564,1781849438000,-500.0,0.00015613,2]
[425640561,1781849438000,-500.0,0.00015613,2]
[425640563,1781849438000,-500.0,0.00015613,2]
[425640566,1781849438000,-500.0,0.00015613,2]
[425640568,1781849438000,-500.0,0.00015613,2]
[425640570,1781849438000,-500.0,0.00015613,2]
[425640526,1781849438000,-437.87951995,0.00015537,2]
[425640529,1781849438000,-503.12901286,0.00015613,2]
[425640546,1781849438000,-500.0,0.00015613,2]
[425640519,1781849438000,-500.0,0.00015537,2]
[425640528,1781849438000,-809.21653113,0.00015609,2]
[425640484,1781849438000,-500.0,0.00015434,2]
[425640486,1781849438000,-400.71599781,0.00015434,2]
[425640490,1781849438000,-151.0,0.000155,2]
[425640493,1781849438000,-500.0,0.00015537,2]
[425640488,1781849438000,-2232.15329843,0.00015499,2]
[425640496,1781849438000,-500.0,0.00015537,2]
[425640494,1781849438000,-500.0,0.00015537,2]
[425640502,1781849438000,-500.0,0.00015537,2]
[425640498,1781849438000,-500.0,0.00015537,2]
[425640506,1781849438000,-500.0,0.00015537,2]
[425640516,1781849438000,-500.0,0.00015537,2]
[425640504,1781849438000,-500.0,0.00015537,2]
[425640508,1781849438000,-274.50945722,0.00015537,2]
[425640510,1781849438000,-500.0,0.00015537,2]
[425640514,1781849438000,-500.0,0.00015537,2]
[425640517,1781849438000,-500.0,0.00015537,2]
[425640512,1781849438000,-500.0,0.00015537,2]
[425640521,1781849438000,-500.0,0.00015537,2]
[425640531,1781849438000,-500.0,0.00015613,2]
[425640522,1781849438000,-500.0,0.00015537,2]
[425640500,1781849438000,-500.0,0.00015537,2]
[425640623,1781849439000,-500.0,0.00015708,2]
[425640615,1781849439000,-1081.0,0.00015615,2]
[425640621,1781849439000,-500.0,0.00015636,2]
[425640628,1781849439000,-98400.69944084,0.00015884,2]
[425640626,1781849439000,-158.19674602,0.00015838,2]
[425640616,1781849439000,-1081.0,0.00015615,2]
[425640617,1781849439000,-1089.1353155,0.00015615,2]
[425640618,1781849439000,-553.7532197,0.00015635,2]
[425640620,1781849439000,-502.66273065,0.00015636,2]
[425640619,1781849439000,-500.72370448,0.00015636,2]
[425640629,1781849439000,-14550.0128993,0.00015984,2]
[425640622,1781849439000,-500.0,0.00015636,2]
[425640625,1781849439000,-362.198044,0.00015774,2]
[425640649,1781849439000,-362.198044,0.00016438,2]
[425640631,1781849439000,-389.30231954,0.00016037,2]
[425640637,1781849439000,-500.0,0.00016163,2]
[425640633,1781849439000,-500.0,0.00016062,2]
[425640639,1781849439000,-533.86,0.00016323,3]
[425640641,1781849439000,-266.93,0.00016323,3]
[425640635,1781849439000,-500.0,0.00016163,2]
[425640643,1781849439000,-800.79,0.00016323,3]
[425640645,1781849439000,-511.02485216,0.00016337,2]
[425640647,1781849439000,-9602.61234833,0.00016343,2]
[425640650,1781849439000,-500.0,0.00016438,2]
[425640665,1781849439000,-500.0,0.00016438,2]
[425640614,1781849439000,-1081.0,0.00015615,2]
[425640630,1781849439000,-380.88737558,0.00016037,2]
[425640613,1781849439000,-1081.0,0.00015615,2]
[425640580,1781849439000,-1081.0,0.00015615,2]
[425640612,1781849439000,-1081.0,0.00015615,2]
[425640578,1781849439000,-500.0,0.00015615,2]
[425640572,1781849439000,-500.0,0.00015615,2]
[425640574,1781849439000,-500.0,0.00015615,2]
[425640576,1781849439000,-500.0,0.00015615,2]
[425640666,1781849439000,-500.0,0.00016438,2]
[425640586,1781849439000,-500.0,0.00015615,2]
[425640584,1781849439000,-1081.0,0.00015615,2]
[425640582,1781849439000,-500.0,0.00015615,2]
[425640588,1781849439000,-1081.0,0.00015615,2]
[425640596,1781849439000,-500.0,0.00015615,2]
[425640590,1781849439000,-500.0,0.00015615,2]
[425640595,1781849439000,-1081.0,0.00015615,2]
[425640611,1781849439000,-1081.0,0.00015615,2]
[425640597,1781849439000,-1081.0,0.00015615,2]
[425640601,1781849439000,-1081.0,0.00015615,2]
[425640598,1781849439000,-267.4775567,0.00015615,2]
[425640599,1781849439000,-1081.0,0.00015615,2]
[425640607,1781849439000,-1081.0,0.00015615,2]
[425640603,1781849439000,-1081.0,0.00015615,2]
[425640604,1781849439000,-1081.0,0.00015615,2]
[425640605,1781849439000,-1081.0,0.00015615,2]
[425640608,1781849439000,-1081.0,0.00015615,2]
[425640602,1781849439000,-1081.0,0.00015615,2]
[425640606,1781849439000,-1081.0,0.00015615,2]
[425640609,1781849439000,-1081.0,0.00015615,2]
[425640610,1781849439000,-1081.0,0.00015615,2]
[425640600,1781849439000,-1081.0,0.00015615,2]
[425640657,1781849439000,-523.36639386,0.00016438,2]
[425640762,1781849439000,-500.0,0.00016438,2]
[425640659,1781849439000,-175.69488924,0.00016438,2]
[425640729,1781849439000,-615.50025788,0.00016438,2]
[425640733,1781849439000,-500.0,0.00016438,2]
[425640731,1781849439000,-500.0,0.00016438,2]
[425640725,1781849439000,-500.0,0.00016438,2]
[425640735,1781849439000,-500.0,0.00016438,2]
[425640737,1781849439000,-500.0,0.00016438,2]
[425640739,1781849439000,-500.0,0.00016438,2]
[425640741,1781849439000,-500.0,0.00016438,2]
[425640742,1781849439000,-500.0,0.00016438,2]
[425640744,1781849439000,-500.0,0.00016438,2]
[425640748,1781849439000,-500.0,0.00016438,2]
[425640764,1781849439000,-512.47562193,0.00016438,2]
[425640727,1781849439000,-1000.0,0.00016438,2]
[425640754,1781849439000,-500.0,0.00016438,2]
[425640758,1781849439000,-529.4049909,0.00016438,2]